bitfinex/quotes_ETHUSD_20250827
["timestamp","ask_amount","ask_price","bid_price","bid_amount"]
[1756275576027,7.5506667,4599.5,4599.4,1e-08]
[1756275578212,7.6378497,4599.5,4599.4,1e-08]
[1756275579748,7.63773826,4599.5,4599.4,1e-08]
[1756275580163,3.91873826,4599.5,4599.4,1e-08]
[1756275580326,7.63573826,4599.5,4599.4,1e-08]
[1756275582221,3.91873826,4599.5,4599.4,1e-08]
[1756275582525,7.63473826,4599.5,4599.4,1e-08]
[1756275582923,7.63373826,4599.5,4599.4,1e-08]
[1756275584557,3.91873826,4599.5,4599.4,1e-08]
[1756275584742,7.63373826,4599.5,4599.4,1e-08]
[1756275585060,7.20223826,4599.5,4599.4,1e-08]
[1756275585228,7.63373826,4599.5,4599.4,1e-08]
[1756275586648,14.71373826,4599.5,4599.4,1e-08]
[1756275587045,10.99873826,4599.5,4599.4,1e-08]
[1756275587238,14.71173826,4599.5,4599.4,1e-08]
[1756275587423,10.56723826,4599.5,4599.4,1e-08]
[1756275587629,14.27923826,4599.5,4599.4,1e-08]
[1756275587826,13.27737032,4599.5,4599.4,0.30710001]
[1756275588230,13.56327032,4599.5,4599.4,1e-08]
[1756275590037,13.56326526,4599.5,4599.4,1e-08]
[1756275591056,13.27736526,4599.5,4599.4,0.30710001]
[1756275591258,13.27736526,4599.5,4599.4,1e-08]
[1756275591574,13.27736526,4599.5,4599.4,0.74130001]
[1756275591575,9.56536526,4599.5,4599.4,0.74130001]
[1756275591727,10.9008,4599.5,4599.4,0.74130001]
[1756275592127,13.07494936,4599.5,4599.4,0.74130001]
[1756275592349,13.07494936,4599.5,4599.4,0.30710001]
[1756275592743,13.07394936,4599.5,4599.4,0.30710001]
[1756275594149,9.36494936,4599.5,4599.4,0.30710001]
[1756275594359,13.07294936,4599.5,4599.4,0.74130001]
[1756275594660,9.36494936,4599.5,4599.4,0.74130001]
[1756275594871,13.07194936,4599.5,4599.4,0.74130001]
[1756275595090,10.01870936,4599.5,4599.4,0.74130001]
[1756275595248,13.72570936,4599.5,4599.4,0.74130001]
[1756275595446,11.55156,4599.5,4599.4,0.74130001]
[1756275595674,7.84456,4599.5,4599.4,0.74130001]
[1756275595884,0.65576,4599.5,4599.4,0.74130001]
[1756275596071,3.708,4599.5,4599.4,0.74130001]
[1756275596272,0.002,4599.5,4599.4,0.74130001]
[1756275597283,0.002,4599.5,4599.4,2.91549664]
[1756275597674,0.002,4599.5,4599.4,3.43545591]
[1756275598253,0.002,4599.5,4599.4,3.54425591]
[1756275598454,0.655641,4599.5,4599.4,3.54425591]
[1756275599298,0.002,4599.5,4599.4,3.54425591]
[1756275600165,0.002,4599.5,4599.4,1.37005928]
[1756275600656,0.002,4599.5,4599.4,0.85010001]
[1756275601870,0.002,4599.5,4599.4,3.02429664]
[1756275602071,0.002,4599.5,4599.4,0.85010001]
[1756275602250,0.002,4599.5,4599.4,3.02429664]
[1756275602454,0.002,4599.5,4599.4,3.0460386]
[1756275602455,0.655635,4599.5,4599.4,3.0460386]
[1756275602707,0.002,4599.5,4599.4,3.54642897]
[1756275603857,0.002,4599.5,4599.4,0.10880001]
[1756275603858,2.48714936,4599.5,4599.4,0.10880001]
[1756275604097,0.7847,4599.5,4599.4,1e-08]
[1756275604260,6.19414936,4599.5,4599.4,1e-08]
[1756275604585,0.002,4599.5,4599.4,0.31610001]
[1756275604794,0.002,4599.5,4599.4,0.78820001]
[1756275605111,0.313,4599.5,4599.4,1e-08]
[1756275605587,0.002,4599.5,4599.4,0.31610001]
[1756275606275,0.002,4599.5,4599.4,1e-08]
[1756275606504,0.313,4599.5,4599.4,1e-08]
[1756275607010,0.002,4599.5,4599.4,0.78820001]
[1756275607203,0.002,4599.5,4599.4,2.96239664]
[1756275607490,0.002,4599.5,4599.4,3.5587363]
[1756275608172,0.002,4599.5,4599.4,6.5587363]
[1756275608373,0.002,4599.5,4599.4,7.2187363]
[1756275609392,0.002,4599.5,4599.4,10.9327363]
[1756275612300,0.002,4599.5,4599.4,7.2187363]
[1756275612501,0.002,4599.5,4599.4,10.9317363]
[1756275614093,0.002,4599.5,4599.4,11.0405363]
[1756275615004,0.002,4599.5,4599.4,11.0385363]
[1756275617568,0.002,4600.0,4599.9,2.8339603]
[1756275617771,0.002,4600.0,4599.9,8.51909593]
[1756275617979,0.002,4600.0,4599.9,9.39435633]
[1756275618372,0.002,4600.0,4599.9,5.68635633]
[1756275618606,0.002,4600.0,4599.9,9.39735633]
[1756275619375,0.002,4600.0,4599.9,9.39635633]
[1756275619805,0.002,4600.5,4600.4,2.83372402]
[1756275620005,0.002,4600.5,4600.4,9.82609642]
[1756275620209,0.002,4600.5,4600.4,9.93489642]
[1756275620404,0.002,4600.5,4600.4,10.72309642]
[1756275621106,0.02,4600.8,4600.7,2.83358228]
[1756275621307,0.1088,4602.6,4602.2,2.17287106]
[1756275621508,0.311,4602.3,4602.2,0.1088]
[1756275621686,0.7827,4602.3,4602.2,0.1088]
[1756275622186,0.90814,4602.3,4602.2,0.1088]
[1756275622383,0.90814,4602.3,4601.6,2.17314161]
[1756275622591,0.4717,4602.2,4601.7,0.1088]
[1756275622990,0.311,4601.8,4601.7,0.1088]
[1756275623212,0.7827,4601.8,4601.7,0.1088]
[1756275624013,0.4717,4602.5,4601.7,0.4249]
[1756275624215,0.1088,4602.7,4601.7,6.30699957]
[1756275624391,0.4717,4602.6,4602.0,0.1088]
[1756275624594,0.311,4602.1,4602.0,0.1088]
[1756275625479,0.1088,4602.7,4602.0,1.04570721]
[1756275625684,1.694,4602.8,4602.4,2.17275954]
[1756275625899,0.311,4602.5,4602.0,3.708]
[1756275626099,0.311,4602.5,4602.2,2.17283037]
[1756275626304,0.311,4602.5,4602.4,0.1088]
[1756275627111,0.022,4602.8,4602.5,2.17271925]
[1756275627702,0.022,4602.8,4602.4,2.17277941]
[1756275627894,0.022,4602.8,4602.7,0.1088]
[1756275628083,0.022,4602.8,4602.7,0.3999]
[1756275628284,0.7522,4602.8,4602.7,0.1088]
[1756275629586,0.3231,4602.8,4602.7,0.1088]
[1756275630581,0.022,4602.8,4602.7,0.3999]
[1756275630782,0.022,4602.8,4602.7,2.57253779]
[1756275630987,0.022,4602.8,4602.7,3.03523779]
[1756275631498,0.7522,4602.8,4602.7,0.1088]
[1756275632927,2.92479059,4602.8,4602.7,0.1088]
[1756275633141,3.21726965,4602.8,4601.9,0.66]
[1756275633306,0.4291,4602.7,4602.5,0.1088]
[1756275633832,0.3011,4602.6,4602.5,0.1088]
[1756275634013,0.7302,4602.6,4602.5,0.1088]
[1756275635021,0.3011,4602.6,4602.5,0.1088]
[1756275635226,0.7302,4602.6,4602.5,0.1088]
[1756275635526,0.022,4602.8,4602.5,2.57263122]
[1756275635705,0.022,4602.8,4602.5,0.3999]
[1756275636310,0.022,4602.8,4602.5,0.1088]
[1756275636803,0.3011,4602.6,4602.5,0.1088]
[1756275637421,0.022,4602.8,4602.5,0.3999]
[1756275637797,0.022,4602.8,4602.5,2.57262164]
[1756275637999,0.022,4602.8,4602.5,3.03532164]
[1756275638330,0.022,4602.8,4602.6,2.17268328]
[1756275638526,0.022,4602.8,4602.7,2.17263779]
[1756275638828,0.022,4602.8,4602.7,2.46373779]
[1756275639037,0.022,4602.8,4602.7,2.92643779]
[1756275639241,0.022,4602.8,4602.7,3.44723396]
[1756275639822,0.022,4602.8,4602.7,0.52079617]
[1756275640017,0.3231,4602.8,4602.5,2.28149055]
[1756275640232,0.3231,4602.8,4602.5,0.1088]
[1756275640415,0.7522,4602.8,4602.5,0.1088]
[1756275641235,0.3231,4602.8,4602.5,0.1088]
[1756275641442,0.022,4602.8,4602.7,2.46373779]
[1756275641735,0.022,4602.8,4602.7,2.94816416]
[1756275642032,0.022,4602.8,4602.7,2.46373779]
[1756275642403,0.022,4602.8,4602.7,2.93826884]
[1756275643049,0.022,4602.8,4602.7,3.40096884]
[1756275643335,0.022,4602.8,4602.7,2.93826884]
[1756275644339,0.022,4602.8,4602.7,0.76563105]
[1756275644649,0.022,4602.8,4602.7,2.46373779]
[1756275645006,0.022,4602.8,4602.7,2.92643779]
[1756275645438,0.022,4602.8,4602.7,3.58643779]
[1756275645735,0.022,4602.8,4602.7,3.12373779]
[1756275646242,0.022,4602.8,4602.7,3.58643779]
[1756275646442,0.022,4602.8,4602.7,4.54283388]
[1756275646643,0.022,4602.8,4602.7,4.08013388]
[1756275646835,0.022,4602.8,4602.7,4.54283388]
[1756275647541,0.3231,4602.8,4602.7,0.95639609]
[1756275647741,0.3231,4602.8,4602.5,0.1088]
[1756275647958,0.4291,4602.7,4602.5,0.1088]
[1756275648315,0.3231,4602.8,4602.5,0.1088]
[1756275648316,0.7302,4602.6,4602.5,0.1088]
[1756275648539,2.17278235,4602.4,4601.5,1.671]
[1756275648715,0.4291,4602.3,4601.8,0.1088]
[1756275649039,0.3011,4601.9,4601.8,0.1088]
[1756275650853,0.1088,4602.4,4601.8,0.3999]
[1756275651040,0.1088,4602.4,4601.9,2.19473906]
[1756275651240,0.1088,4602.4,4601.8,2.28185081]
[1756275651437,0.1088,4602.6,4601.8,2.28185081]
[1756275651953,0.5379,4602.6,4601.8,2.28185081]
[1756275652348,0.5379,4602.6,4601.9,2.17300391]
[1756275652921,0.5379,4602.6,4601.8,0.1088]
[1756275653125,2.60178702,4602.6,4601.7,3.696]
[1756275653421,0.4291,4602.6,4602.2,0.1088]
[1756275653648,0.3011,4602.3,4602.2,0.1088]
[1756275655752,0.1308,4602.8,4602.2,0.3999]
[1756275656248,0.5599,4602.8,4602.2,0.1088]
[1756275656419,0.3011,4602.3,4602.2,0.1088]
[1756275660362,2.94732663,4602.3,4601.4,3.0]
[1756275660562,2.94732663,4602.3,4601.8,0.1088]
[1756275660862,0.7745,4602.3,4601.8,0.1088]
[1756275661032,2.17293168,4602.1,4601.8,0.1088]
[1756275661233,0.3153,4601.9,4601.0,2.17344055]
[1756275661450,0.4734,4601.8,4601.1,0.64534841]
[1756275661627,0.4734,4601.7,4601.2,0.1088]
[1756275661827,0.3153,4601.3,4601.2,0.1088]
[1756275662528,0.7887,4601.3,4601.2,0.1088]
[1756275662727,0.7887,4601.3,4600.8,0.1098]
[1756275662968,0.4734,4601.2,4600.8,0.1098]
[1756275663341,0.3153,4600.9,4600.8,0.1098]
[1756275663540,0.4734,4601.4,4600.8,0.3381382]
[1756275663742,0.4734,4601.4,4600.8,2.81426499]
[1756275663943,0.4734,4601.4,4600.8,2.58592679]
[1756275664164,0.4734,4601.4,4601.0,2.1734383]
[1756275664474,0.4734,4601.4,4600.8,2.58592679]
[1756275664475,3.696,4601.6,4601.1,2.17338617]
[1756275664653,3.696,4601.6,4601.2,2.17332421]
[1756275664832,0.1088,4601.7,4601.6,2.17315716]
[1756275665027,0.1088,4601.7,4601.6,3.59208873]
[1756275665434,3.696,4603.0,4602.4,2.17275629]
[1756275665653,3.696,4603.0,4601.6,3.59208873]
[1756275665654,0.1308,4602.8,4601.6,1.506]
[1756275665864,0.022,4602.8,4602.7,0.3026]
[1756275666045,0.022,4602.8,4602.6,0.1088]
[1756275666671,0.022,4602.8,4602.7,2.90983779]
[1756275667250,0.022,4602.8,4602.7,2.47523779]
[1756275667464,0.022,4602.8,4602.7,3.32051271]
[1756275667662,0.8107,4602.8,4601.4,0.4346]
[1756275667864,0.022,4602.8,4601.4,3.4346]
[1756275668031,0.022,4602.8,4602.7,0.3026]
[1756275668749,0.022,4602.8,4602.7,2.47523779]
[1756275668975,0.022,4602.8,4602.7,2.90983779]
[1756275669306,0.022,4602.8,4602.7,6.59156416]
[1756275669606,0.022,4602.8,4602.7,8.28926623]
[1756275672468,0.022,4602.8,4602.7,11.98426623]
[1756275673560,0.022,4602.8,4602.7,7.19466623]
[1756275673790,0.022,4602.8,4601.9,1.671]
[1756275673791,0.8107,4602.8,4601.9,1.671]
[1756275673995,0.8107,4602.8,4602.6,2.17265756]
[1756275674191,0.4734,4602.7,4602.4,3.696]
[1756275674389,0.022,4602.8,4602.5,2.17273221]
[1756275674593,0.022,4602.8,4602.4,3.696]
[1756275674594,0.3153,4602.5,4602.4,3.696]
[1756275674792,0.3153,4602.5,4602.4,5.86877941]
[1756275675400,0.3153,4602.5,4602.4,3.696]
[1756275675695,0.3153,4602.5,4602.4,5.86877941]
[1756275676521,0.3153,4602.5,4602.2,2.17286743]
[1756275676522,0.3153,4602.5,4602.2,2.17282889]
[1756275676682,0.3153,4602.5,4601.9,3.695]
[1756275676683,0.4734,4602.4,4601.9,3.695]
[1756275676877,0.3153,4602.0,4601.9,5.86800228]
[1756275677106,0.3153,4602.0,4601.9,2.17300228]
[1756275677611,0.3153,4602.0,4601.9,2.28180228]
[1756275677811,0.3153,4602.0,4601.9,0.1088]
[1756275678121,0.7887,4602.0,4601.9,0.1088]
[1756275679492,0.3153,4602.0,4601.9,0.1088]
[1756275680693,2.96166827,4602.0,4601.9,0.1088]
[1756275680992,1.41095254,4602.0,4601.3,0.1088]
[1756275681193,2.17301549,4601.9,4601.3,0.1088]
[1756275681393,3.07049621,4602.0,4601.3,0.1088]
[1756275681595,0.8975,4602.0,4601.3,0.1088]
[1756275681812,2.17324838,4601.5,4600.8,0.001]
[1756275682002,0.1088,4601.4,4600.8,0.1098]
[1756275682190,0.3153,4600.9,4600.8,0.1098]
[1756275682826,0.7887,4600.9,4600.8,0.1098]
[1756275684917,0.5822,4601.4,4600.8,0.1098]
[1756275685090,2.17331601,4601.3,4600.8,0.1098]
[1756275685291,0.3153,4600.9,4600.8,0.1098]
[1756275685491,0.7887,4600.9,4600.8,0.1098]
[1756275686624,0.3153,4600.9,4600.8,0.1098]
[1756275687691,0.7734,4600.9,4600.8,0.1098]
[1756275688121,2.94688779,4600.9,4600.8,0.1098]
[1756275688311,2.94688779,4600.9,4600.8,0.001]
[1756275689522,3.46979715,4600.9,4600.8,0.001]
[1756275690426,2.94688779,4600.9,4600.8,0.001]
[1756275691223,2.94688779,4600.9,4600.8,1e-08]
[1756275691428,5.94688779,4600.9,4600.8,1e-08]
[1756275691638,2.94688779,4600.9,4600.8,1e-08]
[1756275691841,4.0443,4600.9,4600.8,1e-08]
[1756275692003,6.67588779,4600.9,4600.8,1e-08]
[1756275693207,6.67688779,4600.9,4600.8,1e-08]
[1756275693407,2.48878779,4600.9,4600.8,1e-08]
[1756275693617,6.21878779,4600.9,4600.8,1e-08]
[1756275694000,6.67688779,4600.9,4600.8,1e-08]
[1756275695714,6.67588779,4600.9,4600.8,1e-08]
[1756275696145,6.67488779,4600.9,4600.8,1e-08]
[1756275698338,6.67388779,4600.9,4600.8,1e-08]
[1756275698921,2.94688779,4600.9,4600.8,1e-08]
[1756275699240,3.03404279,4600.9,4600.8,1e-08]
[1756275699420,6.76004279,4600.9,4600.8,1e-08]
[1756275701221,6.86884279,4600.9,4600.8,1e-08]
[1756275702638,3.14284279,4600.9,4600.8,1e-08]
[1756275702838,6.86684279,4600.9,4600.8,1e-08]
[1756275705138,6.86284279,4600.9,4600.8,1e-08]
[1756275705344,6.86484279,4600.9,4600.8,1e-08]
[1756275706215,6.40574279,4600.9,4600.8,1e-08]
[1756275706417,6.86384279,4600.9,4600.8,1e-08]
[1756275707817,13.94384279,4600.9,4600.8,1e-08]
[1756275709550,13.93984279,4600.9,4600.8,1e-08]
[1756275709745,16.93984279,4600.9,4600.8,1e-08]
[1756275710545,12.76674279,4600.9,4600.8,1e-08]
[1756275710751,16.48174279,4600.9,4600.8,1e-08]
[1756275711055,16.93984279,4600.9,4600.8,1e-08]
[1756275711249,16.48174279,4600.9,4600.8,1e-08]
[1756275712728,16.16444279,4600.9,4600.8,1e-08]
[1756275713239,16.46654279,4600.9,4600.8,1e-08]
[1756275713441,16.92464279,4600.9,4600.8,1e-08]
[1756275714020,16.83748779,4600.9,4600.8,1e-08]
[1756275716159,13.12448779,4600.9,4600.8,1e-08]
[1756275716362,16.83648779,4600.9,4600.8,1e-08]
[1756275718953,16.37838779,4600.9,4600.8,1e-08]
[1756275719368,16.83998779,4600.9,4600.8,1e-08]
[1756275722168,2.17365313,4600.6,4600.3,1e-08]
[1756275722369,11.48145929,4600.4,4600.3,1e-08]
[1756275722670,11.79685929,4600.4,4600.3,1e-08]
[1756275722833,12.25845929,4600.4,4600.3,1e-08]
[1756275723465,11.79685929,4600.4,4600.3,1e-08]
[1756275723667,15.50385929,4600.4,4600.3,1e-08]
[1756275723871,15.96545929,4600.4,4600.3,1e-08]
[1756275725671,23.04545929,4600.4,4600.3,1e-08]
[1756275726442,18.87685929,4600.4,4600.3,1e-08]
[1756275726643,22.58185929,4600.4,4600.3,1e-08]
[1756275727150,23.04345929,4600.4,4600.3,1e-08]
[1756275727361,22.58185929,4600.4,4600.3,1e-08]
[1756275728779,1.674,4601.4,4600.3,0.74330001]
[1756275729073,0.002,4601.4,4600.8,0.1088]
[1756275729488,1.627,4601.3,4600.9,1.13803487]
[1756275729784,1.152,4601.3,4601.2,2.46034608]
[1756275730070,1.152,4601.3,4601.2,2.98424608]
[1756275730257,3.709,4601.3,4601.2,2.98424608]
[1756275732276,0.002,4601.4,4601.3,2.17329885]
[1756275732577,3.71,4601.4,4601.3,2.58839885]
[1756275732788,0.002,4601.4,4601.3,3.40362467]
[1756275733070,3.708,4601.4,4601.3,3.40362467]
[1756275734751,3.708,4601.4,4601.3,0.287]
[1756275735071,4.1322,4601.4,4600.7,0.1088]
[1756275735254,2.17339116,4601.2,4600.7,0.1088]
[1756275735456,3.706,4601.1,4600.7,0.1088]
[1756275736074,5.87939372,4601.1,4600.7,0.1088]
[1756275736377,2.17344525,4601.0,4600.7,0.1088]
[1756275736575,1.672,4600.9,4600.3,1e-08]
[1756275736782,1.672,4600.9,4600.3,0.10880001]
[1756275736783,3.706,4600.8,4600.3,0.10880001]
[1756275737475,5.87953728,4600.8,4600.3,0.10880001]
[1756275737865,3.706,4600.8,4600.3,0.10880001]
[1756275738073,2.17358228,4600.7,4600.3,0.10880001]
[1756275738653,5.87954129,4600.8,4600.3,0.10880001]
[1756275738870,2.17358613,4600.7,4600.3,0.10880001]
[1756275739278,3.706,4600.8,4600.3,0.10880001]
[1756275739857,3.706,4600.8,4600.3,1e-08]
[1756275739858,0.3154,4600.4,4600.3,1e-08]
[1756275740175,4.1282,4600.4,4600.3,1e-08]
[1756275740369,3.8128,4600.4,4600.3,1e-08]
[1756275740869,6.30192402,4600.4,4600.3,1e-08]
[1756275741069,6.76352402,4600.4,4600.3,1e-08]
[1756275744476,9.76252402,4600.4,4600.3,1e-08]
[1756275745595,6.05952402,4600.4,4600.3,1e-08]
[1756275745898,9.76152402,4600.4,4600.3,1e-08]
[1756275747696,9.19112402,4600.4,4600.3,1e-08]
[1756275747897,8.98452402,4600.4,4600.3,1e-08]
[1756275748099,5.28252402,4600.4,4600.3,0.30720001]
[1756275748394,7.65552402,4600.4,4600.3,0.30720001]
[1756275748714,8.38102402,4600.4,4600.3,1e-08]
[1756275752011,7.94432402,4600.4,4600.3,1e-08]
[1756275752166,1.7808,4600.4,4600.3,0.30720001]
[1756275752371,5.4808,4600.4,4600.3,0.30720001]
[1756275752773,1.7808,4600.4,4600.3,0.30720001]
[1756275753080,7.65552402,4600.4,4600.3,0.30720001]
[1756275753273,1.7808,4600.4,4600.3,0.30720001]
[1756275753680,5.4808,4600.4,4600.3,0.30720001]
[1756275754298,7.65452402,4600.4,4600.3,0.30720001]
[1756275754600,5.4808,4600.4,4600.3,0.30720001]
[1756275755877,0.002,4600.9,4600.3,0.30720001]
[1756275756082,0.002,4600.9,4600.4,0.02173724]
[1756275756083,1.672,4600.8,4600.4,0.02173724]
[1756275756398,2.258,4600.8,4600.7,0.3072]
[1756275756600,2.258,4600.8,4600.7,0.7224]
[1756275756806,2.258,4600.8,4600.7,3.18558301]
[1756275757030,1.672,4600.8,4600.7,3.18558301]
[1756275757307,5.372,4600.8,4600.7,3.18558301]
[1756275757503,1.672,4600.8,4600.7,3.29438301]
[1756275757688,0.002,4600.9,4600.8,2.17353503]
[1756275757893,0.002,4600.9,4600.8,2.93990868]
[1756275758110,0.002,4600.9,4600.8,6.99417333]
[1756275760010,0.002,4600.9,4600.8,7.15385834]
[1756275761677,1e-08,4601.4,4601.2,0.66]
[1756275761871,1e-08,4601.4,4601.3,9.55703183]
[1756275762074,0.002,4601.9,4601.3,9.55703183]
[1756275762075,1e-08,4601.9,4601.8,0.66]
[1756275762304,1e-08,4601.9,4601.8,7.4698]
[1756275762503,1e-08,4601.9,4601.8,11.33172962]
[1756275762885,1e-08,4601.9,4601.8,7.21552962]
[1756275763087,1e-08,4601.9,4601.8,6.55552962]
[1756275763288,0.28880001,4601.9,4601.8,0.1088]
[1756275763488,1e-08,4601.9,4601.8,0.1088]
[1756275763714,0.28880001,4601.9,4601.8,0.1088]
[1756275764178,1e-08,4601.9,4601.8,0.1088]
[1756275764573,0.72550001,4601.9,4601.8,0.1088]
[1756275764813,4.42950001,4601.9,4601.8,0.1088]
[1756275765617,3.99280001,4601.9,4601.8,0.1088]
[1756275766421,3.99380001,4601.9,4601.8,0.1088]
[1756275766920,3.70500001,4601.9,4601.8,0.1288]
[1756275767096,1e-08,4601.9,4601.8,0.1288]
[1756275767423,3.70300001,4601.9,4601.8,0.66619059]
[1756275768100,3.70300001,4601.9,4601.8,0.436]
[1756275768419,1e-08,4601.9,4601.8,0.436]
[1756275768633,1e-08,4601.9,4601.8,3.29079333]
[1756275768920,1e-08,4601.9,4601.8,3.26906271]
[1756275769121,0.28880001,4601.9,4601.8,0.1288]
[1756275769622,0.72550001,4601.9,4601.8,0.1288]
[1756275769822,1e-08,4601.9,4601.8,0.1288]
[1756275770029,1e-08,4601.9,4601.8,2.60906271]
[1756275770397,1e-08,4601.9,4601.8,3.08728702]
[1756275771699,1e-08,4601.9,4601.8,0.91422431]
[1756275771900,1e-08,4601.9,4601.8,0.436]
[1756275772096,0.28880001,4601.9,4601.8,0.1288]
[1756275772313,0.28880001,4601.9,4601.8,0.1088]
[1756275773603,0.72550001,4601.9,4601.8,0.1088]
[1756275773809,0.28880001,4601.9,4601.8,0.1088]
[1756275774021,1e-08,4601.9,4601.8,0.1088]
[1756275774533,1e-08,4601.9,4601.8,0.416]
[1756275774842,1e-08,4601.9,4601.8,2.58906271]
[1756275775211,1e-08,4601.9,4601.8,3.06528439]
[1756275776927,1e-08,4601.9,4601.8,0.89222168]
[1756275777233,1e-08,4601.9,4601.8,2.58906271]
[1756275778009,1e-08,4601.9,4601.8,0.416]
[1756275778236,1e-08,4601.9,4601.8,0.1088]
[1756275778622,1e-08,4601.9,4601.8,2.28186271]
[1756275780227,0.29430001,4601.9,4601.8,0.1088]
[1756275780430,0.75280001,4601.9,4601.8,0.1088]
[1756275781341,1.19788001,4601.9,4601.8,0.1088]
[1756275781644,4.45080001,4601.9,4601.8,0.1088]
[1756275781847,0.75280001,4601.9,4601.8,0.1088]
[1756275782051,3.69800001,4601.9,4601.8,0.1088]
[1756275782224,3.69800001,4601.9,4601.8,2.28186271]
[1756275783048,1e-08,4601.9,4601.8,2.59446271]
[1756275783251,1e-08,4601.9,4601.8,3.07122897]
[1756275783412,1e-08,4601.9,4601.8,3.73122897]
[1756275783621,1e-08,4601.9,4601.8,7.14642897]
[1756275785514,1e-08,4601.9,4601.8,10.84442897]
[1756275787121,1e-08,4601.9,4601.8,10.86442897]
[1756275790322,1e-08,4601.9,4601.8,10.84442897]
[1756275792336,1e-08,4602.3,4602.2,2.83287384]
[1756275792544,1e-08,4602.3,4602.2,9.55160257]
[1756275792834,1e-08,4602.3,4602.2,10.36647384]
[1756275794164,0.022,4602.8,4602.7,5.83263779]
[1756275794457,0.022,4602.8,4602.7,10.63017252]
[1756275794636,0.022,4602.8,4602.7,10.94277252]
[1756275794832,0.022,4602.8,4602.7,11.05157252]
[1756275795448,0.022,4602.8,4602.7,11.46677252]
[1756275796450,0.022,4602.8,4602.7,11.05157252]
[1756275796664,0.022,4602.8,4602.7,11.46677252]
[1756275796851,0.022,4602.8,4602.7,11.05157252]
[1756275797430,0.022,4602.8,4602.7,17.23723348]
[1756275797825,0.022,4602.8,4602.7,17.65243348]
[1756275798324,0.022,4602.8,4602.7,17.23723348]
[1756275799427,0.022,4602.8,4602.7,11.05157252]
[1756275803175,0.022,4602.8,4602.7,17.23723348]
[1756275803466,0.022,4602.8,4602.7,17.65243348]
[1756275803669,1e-08,4603.0,4602.9,5.83254339]
[1756275803842,1e-08,4603.0,4602.9,11.78118709]
[1756275804043,0.29430001,4603.0,4602.9,11.78118709]
[1756275804270,0.75280001,4603.0,4602.9,11.78118709]
[1756275804841,1e-08,4603.0,4602.9,11.78118709]
[1756275805169,0.29430001,4603.0,4602.9,11.78118709]
[1756275805372,0.75280001,4603.0,4602.9,11.78118709]
[1756275807074,0.29430001,4603.0,4602.9,11.78118709]
[1756275809473,1e-08,4603.0,4602.9,12.09518709]
[1756275810575,1e-08,4603.3,4603.2,5.8324018]
[1756275810785,1e-08,4603.3,4603.2,11.7800455]
[1756275810955,1e-08,4603.3,4603.2,12.2028455]
[1756275813567,1e-08,4603.3,4603.2,12.6180455]
[1756275813878,1e-08,4603.8,4603.7,5.83216586]
[1756275814085,1e-08,4603.8,4603.7,10.52018245]
[1756275814267,1e-08,4603.8,4603.7,10.83418245]
[1756275815172,1e-08,4603.8,4603.7,10.52018245]
[1756275815953,1e-08,4603.8,4603.7,10.83418245]
[1756275818795,1e-08,4603.8,4603.7,10.99926416]
[1756275820074,1e-08,4603.8,4603.7,11.41446416]
[1756275821606,1e-08,4603.8,4603.7,10.99926416]
[1756275823765,1e-08,4604.3,4604.2,2.83192997]
[1756275823989,1e-08,4604.3,4604.2,9.52592997]
[1756275824719,1e-08,4604.3,4604.2,9.83992997]
[1756275824879,1e-08,4604.3,4604.2,9.94872997]
[1756275825082,1e-08,4604.3,4604.2,10.36392997]
[1756275825293,1e-08,4604.3,4604.2,11.82088916]
[1756275825771,1e-08,4604.3,4604.2,11.81493899]
[1756275826497,1e-08,4604.3,4604.2,11.50093899]
[1756275826724,0.29800001,4604.3,4604.2,11.50093899]
[1756275827079,0.74360001,4604.3,4604.2,11.50093899]
[1756275827504,0.29800001,4604.3,4604.2,11.50093899]
[1756275828088,0.74360001,4604.3,4604.2,11.50093899]
[1756275830329,1e-08,4604.3,4604.2,11.50093899]
[1756275831291,1e-08,4604.3,4604.2,11.81493899]
[1756275833426,1e-08,4604.3,4604.2,18.00059995]
[1756275833799,1e-08,4604.3,4604.2,17.68659995]
[1756275834126,0.74360001,4604.3,4604.2,11.50093899]
[1756275834324,0.74360001,4604.3,4604.2,11.94653899]
[1756275836125,0.74360001,4604.3,4604.2,8.94653899]
[1756275836299,0.74360001,4604.3,4604.2,7.0743798]
[1756275836508,0.74360001,4604.3,4604.2,10.0743798]
[1756275838536,0.74360001,4604.3,4604.2,9.6287798]
[1756275841326,0.74360001,4604.3,4604.2,5.9347798]
[1756275841528,0.74360001,4604.3,4604.2,8.9677798]
[1756275841828,0.74360001,4604.3,4604.2,3.1088]
[1756275842028,0.74360001,4604.3,4604.2,3.8018]
[1756275842727,0.74360001,4604.3,4604.2,6.63372997]
[1756275842932,0.74360001,4604.3,4604.2,5.97372997]
[1756275849354,0.74360001,4604.3,4604.2,3.8018]
[1756275849913,0.74360001,4604.3,4604.2,5.97372997]
[1756275851370,1e-08,4604.3,4604.2,10.44840424]
[1756275851718,1e-08,4604.3,4604.2,10.74500424]
[1756275852725,1e-08,4604.3,4604.2,11.19080424]
[1756275854743,1e-08,4604.3,4604.2,10.89420424]
[1756275856350,1e-08,4604.3,4604.2,11.19080424]
[1756275859930,1e-08,4604.3,4604.2,10.89420424]
[1756275861155,1e-08,4604.3,4604.2,11.19080424]
[1756275862562,1e-08,4604.3,4604.2,10.89420424]
[1756275862731,1e-08,4604.3,4604.2,11.19080424]
[1756275863026,1e-08,4604.3,4604.2,10.89420424]
[1756275863228,1e-08,4604.3,4604.2,11.19080424]
[1756275870749,0.1088,4606.2,4604.2,11.19080424]
[1756275870750,0.042,4606.8,4604.6,2.292]
[1756275870950,0.042,4606.8,4606.7,5.83075129]
[1756275871165,0.5196,4606.8,4606.7,9.62955129]
[1756275871357,0.3576,4606.8,4606.7,6.63555129]
[1756275871566,0.3576,4606.8,4606.7,2.27955129]
[1756275871794,0.8132,4606.8,4606.7,0.5644]